Cogmind - Beta 14 @@@ ROGUE MODE // 2024.08.19 @ 03:00:55 Player: Tim Result: Destroyed by Y-45 Defender with Beam Rifle Performance ------------- Evolutions (1) 500 Regions Visited (3) 600 Robots Destroyed (30) 150 Value Destroyed (699) 699 Prototype IDs (2) 40 Alien Tech Used (0) 0 Bonus (25) 25 TOTAL SCORE: 2014 Bonus ------- Follower Combat Kills 25 Cogmind --------- Core Integrity 0/400 Matter 179/300 Energy 280/280 System Corruption 0% Temperature Cool (22) Movement Core (250) Ox4 Location -9/Materials Parts ------- > --- POWER (1) -------- Cooled Ion Engine > --- PROPULSION (3) --- (None) > --- UTILITY (3) ------ Small Storage Unit > --- WEAPON (2) ------- Light Assault Rifle > --- INVENTORY (8) ---- Cooled Ion Engine Cooled Ion Engine Heat Sink Small Matter Pod (0) Peak State ------------ > --- POWER ------------ Cooled Ion Engine > --- PROPULSION ------- Aluminum Leg Aluminum Leg Aluminum Leg > --- UTILITY ---------- Improved Heat Sink Small Storage Unit Targeting Computer > --- WEAPON ----------- Battle Cannon > --- INVENTORY -------- Improved Ion Engine Cooled Ion Engine Aluminum Leg Aluminum Leg Heat Sink Assault Rifle Light Assault Rifle Grenade Launcher [Rating: 14] Favorites ----------- Power Ion Engine Engine Ion Engine Propulsion Light Treads Treads Light Treads Leg Aluminum Leg Utility Small Storage Unit Device Improved Heat Sink Storage Small Storage Unit Processor Targeting Computer Weapon Assault Rifle Ballistic Gun Assault Rifle Ballistic Cannon Battle Cannon Launcher Grenade Launcher Special Melee Weapon Datajack Build | -11 -10 -10 -9 ------- Run | Yrd Mat Min Mat Slots Evolved 2 | . . . 2 Power . | . . . . Propulsion 1 | . . . 1 Utility 1 | . . . 1 Weapon . | . . . . Parts Attached 26 | 6 . 7 13 Power 5 | 1 . 2 2 Engine 5 | 1 . 2 2 Core . | . . . . Reactor . | . . . . Propulsion 9 | 2 . 2 5 Treads 2 | 2 . . . Leg 7 | . . 2 5 Wheel . | . . . . Hover . | . . . . Flight . | . . . . Utility 4 | 1 . 1 2 Device 2 | . . . 2 Storage 1 | 1 . . . Processor 1 | . . 1 . Hackware . | . . . . Protection . | . . . . Artifact . | . . . . Weapon 8 | 2 . 2 4 Energy Gun . | . . . . Energy Cannon . | . . . . Ballistic Gun 4 | 2 . . 2 Ballistic Cannon 2 | . . 1 1 Launcher 1 | . . . 1 Special Weapon . | . . . . Impact Weapon . | . . . . Slashing Weapon . | . . . . Piercing Weapon . | . . . . Special Melee Weapon 1 | . . 1 . Unidentified Prototypes . | . . . . Parts Lost 14 | . . 4 10 Power 1 | . . 1 . Propulsion 5 | . . . 5 Utility 2 | . . . 2 Weapon 6 | . . 3 3 Highest Loss Streak 10 | . . 2 10 To Critical Strikes . | . . . . Average Slot Usage (%) 84 | . 85 86 77 Engine 13 | . 14 13 11 Treads 15 | . 28 17 . Leg 13 | . . 10 30 Storage 13 | . 14 14 11 Processor 5 | . . 4 11 Ballistic Gun 14 | . 28 16 1 Ballistic Cannon 5 | . . 5 9 Special Melee Weapon 2 | . . 3 . Peak Build Rating 14 | 6 6 8 14 Average Rating 7 | 5 6 6 9 On Entrance 4 | . 6 6 7 Naked Turns . | . . . . Heaviest Build 17 | 14 14 14 17 Greatest Support 40 | 40 40 40 30 Greatest Overweight (x) 2 | 2 . . . Average Overweight (x) . | . . . . Largest Inventory Capacity 8 | 8 8 8 8 Average Capacity 7 | 6 8 8 8 Most Carried 8 | 6 8 8 8 Average Carried 7 | 3 7 7 5 Final Capacity 8 | 8 8 8 8 Final Carried 8 | 6 8 6 4 Class Distribution -------------------- 97% | Mutant Dominant Class ---------------- Mutant | -10/Materials Mutant | -10/Mines Mutant | -9/Materials Resources | -11 -10 -10 -9 ----------- Run | Yrd Mat Min Mat Matter Collected 759 | 203 134 278 144 Remotely . | . . . . Salvage Created 780 | . 134 290 356 Parts 56 | . 12 21 23 Haulers Intercepted 1 | . . . 1 Recyclers Shooed 1 | . 1 . . Parts Field Recycled . | . . . . Retrieved Matter . | . . . . Parts Self-Destructed . | . . . . Prevented . | . . . . Kills | -11 -10 -10 -9 ------- Run | Yrd Mat Min Mat Combat Hostiles Destroyed 26 | . 5 10 11 Guns 9 | . 5 2 2 Cannons 15 | . . 8 7 AOE 2 | . . . 2 Classes Destroyed 6 | . 2 2 2 Worker 2 | . . 2 . Hauler 1 | . . . 1 Recycler 1 | . . 1 . Swarmer 12 | . 3 6 3 Grunt 13 | . 2 4 7 Sentry 1 | . . . 1 Best Kill Streak 5 | . 3 3 5 Combat Bots Only 5 | . 3 3 5 Max Kills in Single Turn 1 | . 1 1 1 Gunslinging . | . . . . Exploded 1 | . . . 1 Melee . | . . . . Uniques/NPCs Destroyed . | . . . . Combat | -11 -10 -10 -9 -------- Run | Yrd Mat Min Mat Hostile Shots Fired 239 | . 39 82 118 Missed 65 | . 11 30 24 Damage Taken 2231 | . 261 633 1337 Core 567 | . 72 91 404 Absorbed by Shields . | . . . . Core Remaining (%) 67 | 100 . 34 . Volleys Fired 104 | . 17 47 40 Largest 2 | . 2 2 2 Hottest 50 | . 40 40 50 Shots Fired 139 | . 34 63 42 Gun 88 | . 34 32 22 Cannon 48 | . . 31 17 Launcher 3 | . . . 3 Special . | . . . . Kinetic 136 | . 34 63 39 Thermal . | . . . . Explosive 3 | . . . 3 Electromagnetic . | . . . . Robot Hit Streak 18 | . 9 7 18 Robot Miss Streak 5 | . 4 2 5 Penetration Max . | . . . . Secondary Targets . | . . . . Shots Hit Robots 98 | . 25 42 31 Core Hits 41 | . 9 15 17 Critical Kills . | . . . . Critical Parts Destroyed . | . . . . Critical Strikes 7 | . . 5 2 Destroy 1 | . . . 1 Blast 6 | . . 5 1 Melee Attacks 4 | . . 4 . Impact . | . . . . Slashing . | . . . . Piercing . | . . . . Sneak Attacks 1 | . . 1 . Combat Hostiles . | . . . . Follow-up Attacks . | . . . . Damage Inflicted 1743 | . 289 676 778 Guns 730 | . 287 275 168 Cannons 648 | . . 394 254 Explosions 356 | . . . 356 Melee . | . . . . Ramming 9 | . 2 7 . Kinetic 1378 | . 287 669 422 Thermal 179 | . . . 179 Explosive 177 | . . . 177 Electromagnetic . | . . . . Impact . | . . . . Slashing . | . . . . Piercing . | . . . . Highest Corruption . | . . . . Average Corruption . | . . . . Corruption Purged . | . . . . Corruption Blocked . | . . . . Overload Shots . | . . . . Overflow Damage 104 | . . 10 94 Projectiles 10 | . . 10 . Explosions 94 | . . . 94 Melee . | . . . . Knockbacks 9 | . . 7 2 Impact . | . . . . Kinetic 8 | . . 6 2 Secondary 1 | . . 1 . Self-Inflicted Damage 172 | . . . 172 Shots 3 | . . . 3 Rammed 1 | . 1 . . Targets Rammed 3 | . 1 2 . Kicked . | . . . . Crushed 2 | . . 2 . Highest Temperature 30 | . 2 30 8 Average Temperature 9 | . 2 12 4 Received Heat Transfer 675 | . 36 282 357 Siege Activations . | . . . . Robots Corrupted . | . . . . Combat Hostiles . | . . . . Parts Fried . | . . . . Impact Corruptions . | . . . . Robots Melted . | . . . . Combat Hostiles . | . . . . Parts Melted 1 | . . . 1 Heat Transferred 100 | . . . 100 Parts Sabotaged . | . . . . Parts Stolen . | . . . . Parts Stripped . | . . . . Power Chain Reactions . | . . . . Alert | -11 -10 -10 -9 ------- Run | Yrd Mat Min Mat Peak Influence 395 | . 183 169 395 Initial 70 | . . 70 65 Average 101 | . 107 81 174 Maximum Alert Level 1 | . . . 1 Low Security (%) 91 | 100 100 100 58 Level 1 8 | . . . 41 Level 2 . | . . . . Level 3 . | . . . . Level 4 . | . . . . Level 5 . | . . . . High Security . | . . . . Max Security . | . . . . Squads Dispatched 4 | . 2 . 2 Investigation 2 | . 1 . 1 Extermination . | . . . . Reinforcement 2 | . 1 . 1 Assault . | . . . . Garrison . | . . . . Intercept . | . . . . Searches Triggered . | . . . . Construction Impeded . | . . . . Haulers Reinforced . | . . . . Active Scanning Responses . | . . . . Cargo Convoy Interrupts . | . . . . Stealth | -11 -10 -10 -9 --------- Run | Yrd Mat Min Mat Distress Signals 4 | . 2 . 2 Communications Jammed . | . . . . Distress Signals . | . . . . Times Spotted 42 | . 11 13 18 Peak Tracking Total 8 | . 5 3 8 Tactical Retreats 3 | . . 3 . Traps | -11 -10 -10 -9 ------- Run | Yrd Mat Min Mat Traps Triggered 1 | . 1 . . Indirectly . | . . . . Trap Hack Attempts . | . . . . Triggered . | . . . . Disarmed . | . . . . Reprogrammed . | . . . . Reused . | . . . . Traps Extracted . | . . . . Installed . | . . . . Triggered . | . . . . Machines | -11 -10 -10 -9 ---------- Run | Yrd Mat Min Mat Machines Disabled 3 | . . 1 2 Max in Single Turn 2 | . . 1 2 Machines Repaired . | . . . . Machines Dismantled . | . . . . Machines Sabotaged . | . . . . Overloaded Fab Kills . | . . . . Hacking | -11 -10 -10 -9 --------- Run | Yrd Mat Min Mat Machines Accessed 5 | . 2 . 3 Terminals 4 | . 2 . 2 Fabricators . | . . . . Repair Stations . | . . . . Recycling Units . | . . . . Scanalyzers 1 | . . . 1 Garrison Access . | . . . . Total Hacks 17 | . 9 . 8 Successful 7 | . 4 . 3 Failed 10 | . 5 . 5 Catastrophic 3 | . 2 . 1 Database Lockouts . | . . . . Manual 6 | . 5 . 1 Terminals 15 | . 9 . 6 Fabricators . | . . . . Repair Stations . | . . . . Recycling Units . | . . . . Scanalyzers 2 | . . . 2 Garrison Access . | . . . . Terminal Hacks 5 | . 4 . 1 Robot Analysis 3 | . 3 . . Prototype ID Bank 1 | . 1 . . Branch Access Points 1 | . . . 1 Fabricator Hacks . | . . . . Repair Station Hacks . | . . . . Recycling Unit Hacks . | . . . . Scanalyzer 2 | . . . 2 Insert Component 1 | . . . 1 Analyze 1 | . . . 1 Garrison Access Hacks . | . . . . Unauthorized Hacks . | . . . . Terminals . | . . . . Fabricators . | . . . . Repair Stations . | . . . . Recycling Units . | . . . . Scanalyzers . | . . . . Garrison Access . | . . . . Data Cores Recovered . | . . . . Used . | . . . . Hacking Detections 5 | . 2 . 3 Full Trace Events 3 | . 2 . 1 Feedback Events . | . . . . Feedback Blocked . | . . . . Robot Schematics Acquired . | . . . . Robots Built . | . . . . Authchips . | . . . . Time . | . . . . Total Robot Build Rating . | . . . . Part Schematics Acquired 1 | . . . 1 Parts Built . | . . . . Authchips . | . . . . Time . | . . . . Total Part Build Rating . | . . . . Parts Repaired . | . . . . Time . | . . . . Parts Recycled . | . . . . Recycled Matter . | . . . . Retrieved Matter . | . . . . Retrieved Components . | . . . . Parts Scanalyzed 1 | . . . 1 Part Schematics Acquired 1 | . . . 1 Parts Damaged . | . . . . Bothacking | -11 -10 -10 -9 ------------ Run | Yrd Mat Min Mat Used RIF Installer . | . . . . Robots Hacked 1 | . . 1 . Non-combat . | . . . . Combat 1 | . . 1 . Robot Hacks Applied 1 | . . 1 . parse_system 1 | . . 1 . Relay Couplers Released . | . . . . Fabnet Peak Effective % . | . . . . Robots Rewired . | . . . . Allies Hacked . | . . . . Hacks Repelled . | . . . . Allies | -11 -10 -10 -9 -------- Run | Yrd Mat Min Mat Total Allies 3 | . . 3 . Largest Group 3 | . . 3 3 Highest-Rated Group 40 | . . 40 40 Highest-Rated Ally 16 | . . 16 16 Total Orders 3 | . . . 3 ROAM 3 | . . . 3 Ally Attacks 23 | . . . 23 Total Damage 211 | . . . 211 Kills 2 | . . . 2 Allies Corrupted . | . . . . Allies Melted . | . . . . Intel | -11 -10 -10 -9 ------- Run | Yrd Mat Min Mat Robot Analysis Total 3 | . 3 . . Derelict Logs Recovered 3 | . . 3 . Drone Launches . | . . . . Drone Recoveries . | . . . . Exploration | -11 -10 -10 -9 ------------- Run | Yrd Mat Min Mat Turns Passed 1901 | 87 260 1151 403 Spaces Moved 1126 | 48 128 701 249 Core 16 | 16 . . . Treads 563 | 32 128 403 . Legs 547 | . . 298 249 Wheels . | . . . . Hover . | . . . . Flight . | . . . . Fastest Speed 50 | 50 160 120 120 Average Speed 140 | 150 160 142 120 Slowest Speed 160 | 160 160 160 120 Overloaded Moves . | . . . . Propulsion Burnouts . | . . . . Robots Hopped . | . . . . Cave-ins Triggered . | . . . . Exploration Rate (%) 35 | 4 22 96 20 Regions Visited 3 Branch Regions 1 Pre-discovered Areas . | . . . . Known Exits Taken 1 | . . 1 . Unknown Exits Taken 2 | 1 1 . . Scrap Searched 2 | . . 2 . Spaces Dug . | . . . . Terrain Destroyed 50 | . . 5 45 Melee . | . . . . Projectile 6 | . . 5 1 AOE 44 | . . . 44 Terrain Rammed . | . . . . Walls Destroyed . | . . . . Machines Disabled . | . . . . Actions | -11 -10 -10 -9 --------- Run | Yrd Mat Min Mat Total 1309 | 60 149 783 317 Wait 25 | . 2 15 8 Move 1123 | 47 127 700 249 Hop . | . . . . Pick Up 15 | 7 2 3 3 Fast Attach 9 | 5 . 3 1 Attach 9 | 1 . 1 7 Detach 1 | . . . 1 Swap 8 | . . 3 5 Drop 8 | . . 5 3 Fire 104 | . 17 47 40 Melee 4 | . . 4 . Ram . | . . . . Kick . | . . . . Crush 3 | . 1 2 . Escape Stasis . | . . . . Rewire . | . . . . Trap . | . . . . Miscellaneous . | . . . . Route ------- -11/Scrapyard -10/Materials -10/Mines (discovered 2 exits: *Mat x2) -9/Materials (discovered 3 exits: *Mat x2 / Min) History --------- Turn | Location | Event 13 | -11/Scrapyard | Discovered new exit (range 15) 88 | -11/Scrapyard | Entered Materials 289 | -10/Materials | Discovered new exit (range 8) 317 | -10/Materials | Build established: Mutant 348 | -10/Materials | Entered Mines 475 | -10/Mines | Learned 8 Materials zone layouts 484 | -10/Mines | Discovered new exit (range 7) 1026 | -10/Mines | A weapon hastily lodged in a ceiling crevice suddenly fell to the ground 1037 | -10/Mines | Core integrity fell below 50% 1104 | -10/Mines | Identified exit to Materials 1493 | -10/Mines | Assisted by bots powering up and referring to "LRC-V3" 1499 | -10/Mines | Entered Materials 1499 | -9/Materials | Accompanied by 3 allies 1499 | -9/Materials | Evolved 2 slots: Propulsion x1, Utility x1 1500 | -9/Materials | Identified exit to Mines 1500 | -9/Materials | Identified exit to Materials 1888 | -9/Materials | Core integrity fell below 50% 1900 | -9/Materials | Core integrity fell below 20% 1902 | -9/Materials | Destroyed by Y-45 Defender with Beam Rifle Last Messages --------------- 01840_ R-06 Scavenger collects Flight Unit. 01843_ K-01 Serf collects debris. 01844_ R-06 Scavenger collects Flight Unit. 01845_ G-34 Mercenary destroyed. 01846_ Critical hit (Burn: +37). 01847_ U-05 Engineer lays Concrete. 01847_ K-01 Serf collects debris. 01848_ U-05 Engineer lays Concrete. 01851_ K-01 Serf collects debris. 01851_ R-06 Scavenger collects Imp. Ion Engine. 01852_ U-05 Engineer lays Concrete. 01854_ U-05 Engineer builds a Wall. 01855_ Acquired Sml. Matter Pod. 01860_ Aluminum Leg destroyed. 01861_ W-16 Scout sends out distress signal. 01874_ Imp. Heat Sink destroyed. 01885_ Aluminum Leg destroyed. 01894_ Y-45 Defender suffers critical hit (Destroy). 01897_ Y-45 Defender destroyed. 01902_ Targeting Computer destroyed. Map ----- +----------------------------------------------------+ | | | | | | | | | | | | | ?????????????????????????????????????????????????? | | ?????????????????????????????????????????????????? | | ??????????????????????????????????????#####??????? | | ####################################### #??????? | | ######## | | ##### ########################## ###### # | | ????# #???????# #####??# ####### | | ????# #???????# # #?## ## # | | ????# #??????## # < ### # # | | ????# #??????# =! # / # ##### | | ????# #??????## = + ### # # #???# | | ????# #???????# # #?##/## # #???# | | ????# #???????# # #?# ###### #???# | | ##### #????#### # k #?# T #??###+##+##### | | ## #???## ######## #?# #??# + | | ## ##### ######## #?# #??# """ ### | | " # ##" %!! # #?# #??# """ #?# | | " # ##" !! +! #?# #??# """ #?# | | [[=# # !! #%YY#?# #??# #?# | | [ ## ## " #######@o #?#####??# """ ### | | #+### ## !%""#????## ##???????# """ ## | | ! ##[###" " #????# #???????# """ ## # | | =* %## % """######Y #???????# ## # | | [##+### # #???????#####+##### # | | # ###% % =* # #???######## #### # | | # #?# %[%[* " # #?????????????????? # | | # #?#*=*"""%=!#% ### ###??????????????????## | | # #?# """"" *+% #?? #?????????????????????? | | # #?# """"" #! #??+#????????????????????#? | | # #?# """""% ###### #????????????????????????## | | # #?# """ ###### #???????????????????????? | | # #?# ### #????????????????????????" | | # #?############ #????????????????????????" | | # #????????????# +????????????????????????" | | # #????????????# #???????????????????????? | | # #????????????# ????????????????????????? | | # #????????????## ????????????????????????? | | # #????????????##### ?????????????????????????## | | # #?????????######## ????????????????????????? | | # #########?# # ????????????????????????? | | # ## ### """ # ????????????????????????? | | # ## T # # """ # ????????????????????????? | | # ### """ # ????????????????????????? | | + #?# + ????????????????????????? | +----------------------------------------------------+ Best States ------------- Heat Dissipation 42 Energy Generation 14 Energy Capacity 280 Matter Stores 300 Matter Capacity 300 Sight Range 16 Terrain Scan Density 10 Evasion (%) 55 Targeting Accuracy 5 Recoil Reduction 2 Item Schematics ----------------- Battle Cannon | -9/Materials | Scanalyzed Robot Schematics ------------------ None Fabricated ------------ Nothing Alien Tech Used ----------------- None Achievements -------------- Armchair Analyst root@ Challenges ------------ None Game ------ Seed EtherialSkeletonBiocell Manual? 0 Play Time 00:16:15 Cumulative 21.2 hours Start 2024.08.19 @ 02:44:30 End 2024.08.19 @ 03:00:55 Sessions 1 Manual Loads 0 Difficulty Rogue Special Mode None Game No. 44 Rogue 44 Adventurer 0 Explorer 0 Win Type - Total 0 Types 0/0/0/0/0/0/0/0/0 Lore% 11 Gallery% 15 Achievement% 14 Wizard Run 0 Options --------- Layout 0 ASCII 0 Keyboard 0 Movement Numpad Keybinds 0 Fullscreen 2 Font 24/Smallcaps Map View 113x50 Zoom Use 0% Tactical HUD 1 Map Filters NONE Filters NONE Steam 1 RUN: 18ed8731-f004-4d89-8885-d4c7c2725724